Cogmind - Beta 13 @@@ ROGUE MODE // 2024.03.21 @ 10:24:06 Player: Rohain Result: Destroyed by G-34 Mercenary with Small Laser Performance ------------- Evolutions (0) 0 Regions Visited (2) 400 Robots Destroyed (16) 80 Value Destroyed (473) 473 Prototype IDs (0) 0 Alien Tech Used (0) 0 Bonus (0) 0 TOTAL SCORE: 953 Bonus ------- None Cogmind --------- Core Integrity 0/250 Matter 290/300 Energy 68/100 System Corruption 0% Temperature Cool (6) Movement Walking (190) Ox1 Location -10/Mines Parts ------- > --- POWER (1) -------- (None) > --- PROPULSION (2) --- Light Treads Aluminum Leg > --- UTILITY (2) ------ Heat Sink Medium Storage Unit > --- WEAPON (2) ------- Medium Laser > --- INVENTORY (10) --- Aluminum Leg Heat Sink Small Storage Unit Targeting Computer Targeting Computer Peak State ------------ > --- POWER ------------ Improved Ion Engine > --- PROPULSION ------- Aluminum Leg Aluminum Leg > --- UTILITY ---------- Heat Sink Medium Storage Unit > --- WEAPON ----------- EM Pulse Gun Medium Laser > --- INVENTORY -------- Light Treads Light Treads Heat Sink Small Storage Unit Targeting Computer Targeting Computer [Rating: 8] Favorites ----------- Power Light Ion Engine Engine Light Ion Engine Propulsion Aluminum Leg Treads Light Treads Leg Aluminum Leg Utility Medium Storage Unit Device Heat Sink Storage Medium Storage Unit Protection Core Shielding Weapon Assault Rifle Energy Gun Medium Laser Ballistic Gun Assault Rifle Build | -11 -10 -10 ------- Run | Yrd Mat Min Slots Evolved . | . . . Power . | . . . Propulsion . | . . . Utility . | . . . Weapon . | . . . Parts Attached 21 | 6 5 10 Power 4 | 1 1 2 Engine 4 | 1 1 2 Core . | . . . Reactor . | . . . Propulsion 5 | 2 . 3 Treads 2 | . . 2 Leg 3 | 2 . 1 Wheel . | . . . Hover . | . . . Flight . | . . . Utility 5 | 1 3 1 Device 1 | . . 1 Storage 2 | 1 1 . Processor . | . . . Hackware . | . . . Protection 2 | . 2 . Artifact . | . . . Weapon 7 | 2 1 4 Energy Gun 2 | . . 2 Energy Cannon . | . . . Ballistic Gun 5 | 2 1 2 Ballistic Cannon . | . . . Launcher . | . . . Special Weapon . | . . . Impact Weapon . | . . . Slashing Weapon . | . . . Piercing Weapon . | . . . Special Melee Weapon . | . . . Unidentified Prototypes . | . . . Parts Lost 9 | . 1 8 Power 4 | . 1 3 Propulsion 2 | . . 2 Utility . | . . . Weapon 3 | . . 3 Highest Loss Streak 3 | . 1 3 To Critical Strikes . | . . . Average Slot Usage (%) 97 | . 99 95 Engine 13 | . 13 13 Treads 7 | . . 14 Leg 20 | . 28 13 Device 5 | . . 11 Storage 14 | . 14 14 Protection 8 | . 13 2 Energy Gun 10 | . . 20 Ballistic Gun 15 | . 28 3 Naked Turns . | . . . Heaviest Build 22 | 13 18 22 Greatest Support 40 | 20 20 40 Greatest Overweight (x) 1 | . . 1 Average Overweight (x) . | . . . Largest Inventory Capacity 10 | 8 10 10 Average Capacity 9 | 6 8 10 Most Carried 7 | 4 5 7 Average Carried 4 | 1 4 5 Final Capacity 10 | 8 10 10 Final Carried 5 | 2 5 5 Class Distribution -------------------- 75% | Mutant 24% | Scavenger-Mutant Dominant Class ---------------- Mutant | -10/Materials Scavenger-Mutant | -10/Mines Resources | -11 -10 -10 ----------- Run | Yrd Mat Min Matter Collected 584 | 154 313 117 Remotely . | . . . Salvage Created 628 | . 258 370 Parts 28 | . 13 15 Haulers Intercepted . | . . . Recyclers Shooed 1 | . 1 . Parts Field Recycled . | . . . Retrieved Matter . | . . . Parts Self-Destructed . | . . . Prevented . | . . . Kills | -11 -10 -10 ------- Run | Yrd Mat Min Combat Hostiles Destroyed 15 | . 7 8 Guns 14 | . 7 7 Classes Destroyed 6 | . 3 3 Worker 1 | . 1 . Tunneler 1 | . . 1 Swarmer 3 | . 3 . Grunt 9 | . 4 5 Sentry 2 | . . 2 Assembled 1 | . . 1 Best Kill Streak 5 | . 4 5 Combat Bots Only 4 | . 3 4 Max Kills in Single Turn 2 | . 2 1 Gunslinging . | . . . Exploded . | . . . Melee . | . . . Uniques/NPCs Destroyed . | . . . Combat | -11 -10 -10 -------- Run | Yrd Mat Min Hostile Shots Fired 127 | . 37 90 Missed 29 | . 8 21 Damage Taken 1254 | . 376 878 Core 253 | . 39 214 Absorbed by Shields . | . . . Redirected to Shielding 24 | . 8 16 Core Remaining (%) 100 | 100 . . Volleys Fired 80 | . 28 52 Largest 2 | . 2 2 Hottest 90 | . 40 90 Shots Fired 125 | . 56 69 Gun 125 | . 56 69 Cannon . | . . . Launcher . | . . . Special . | . . . Kinetic 73 | . 56 17 Thermal 41 | . . 41 Explosive . | . . . Electromagnetic 11 | . . 11 Robot Hit Streak 22 | . 6 22 Robot Miss Streak 3 | . 2 3 Penetration Max . | . . . Secondary Targets . | . . . Shots Hit Robots 91 | . 36 55 Core Hits 31 | . 14 17 Critical Kills . | . . . Critical Parts Destroyed . | . . . Critical Strikes 2 | . . 2 Burn 2 | . . 2 Melee Attacks . | . . . Impact . | . . . Slashing . | . . . Piercing . | . . . Sneak Attacks . | . . . Combat Hostiles . | . . . Follow-up Attacks . | . . . Damage Inflicted 1237 | . 487 750 Guns 1237 | . 487 750 Cannons . | . . . Explosions . | . . . Melee . | . . . Ramming . | . . . Kinetic 682 | . 487 195 Thermal 462 | . . 462 Explosive . | . . . Electromagnetic 93 | . . 93 Impact . | . . . Slashing . | . . . Piercing . | . . . Highest Corruption . | . . . Average Corruption . | . . . Corruption Purged . | . . . Corruption Blocked . | . . . Overload Shots . | . . . Overflow Damage . | . . . Projectiles . | . . . Explosions . | . . . Melee . | . . . Knockbacks . | . . . Impact . | . . . Kinetic . | . . . Secondary . | . . . Self-Inflicted Damage . | . . . Shots . | . . . Rammed . | . . . Targets Rammed . | . . . Kicked . | . . . Crushed . | . . . Highest Temperature 26 | . 20 26 Average Temperature 9 | . 5 10 Received Heat Transfer 597 | . 213 384 Siege Activations . | . . . Robots Corrupted . | . . . Combat Hostiles . | . . . Parts Fried . | . . . Impact Corruptions . | . . . Robots Melted 1 | . . 1 Combat Hostiles 1 | . . 1 Parts Melted 2 | . . 2 Heat Transferred 1443 | . . 1443 Parts Sabotaged . | . . . Parts Stolen . | . . . Parts Stripped . | . . . Power Chain Reactions . | . . . Alert | -11 -10 -10 ------- Run | Yrd Mat Min Peak Influence 140 | . 140 88 Initial 28 | . . 28 Average 48 | . 56 45 Maximum Alert Level . | . . . Low Security (%) 100 | 100 100 100 Level 1 . | . . . Level 2 . | . . . Level 3 . | . . . Level 4 . | . . . Level 5 . | . . . High Security . | . . . Max Security . | . . . Squads Dispatched . | . . . Investigation . | . . . Extermination . | . . . Reinforcement . | . . . Assault . | . . . Garrison . | . . . Intercept . | . . . Searches Triggered . | . . . Construction Impeded . | . . . Haulers Reinforced . | . . . Active Scanning Responses . | . . . Cargo Convoy Interrupts . | . . . Stealth | -11 -10 -10 --------- Run | Yrd Mat Min Distress Signals 1 | . . 1 Communications Jammed . | . . . Distress Signals . | . . . Times Spotted 25 | . 14 11 Peak Tracking Total 5 | . 5 4 Tactical Retreats . | . . . Traps | -11 -10 -10 ------- Run | Yrd Mat Min Traps Triggered . | . . . Indirectly . | . . . Trap Hack Attempts . | . . . Triggered . | . . . Disarmed . | . . . Reprogrammed . | . . . Reused . | . . . Traps Extracted . | . . . Installed . | . . . Triggered . | . . . Machines | -11 -10 -10 ---------- Run | Yrd Mat Min Machines Disabled . | . . . Max in Single Turn . | . . . Machines Repaired . | . . . Machines Dismantled . | . . . Machines Sabotaged . | . . . Overloaded Fab Kills . | . . . Hacking | -11 -10 -10 --------- Run | Yrd Mat Min Machines Accessed 4 | . 3 1 Terminals 3 | . 3 . Fabricators . | . . . Repair Stations . | . . . Recycling Units . | . . . Scanalyzers . | . . . Garrison Access . | . . . Total Hacks 8 | . 7 1 Successful 5 | . 4 1 Failed 3 | . 3 . Catastrophic . | . . . Database Lockouts . | . . . Manual 7 | . 7 . Terminals 7 | . 7 . Fabricators . | . . . Repair Stations . | . . . Recycling Units . | . . . Scanalyzers . | . . . Garrison Access . | . . . Terminal Hacks 2 | . 1 1 Robot Analysis 1 | . 1 . Open Door 1 | . . 1 Fabricator Hacks . | . . . Repair Station Hacks . | . . . Recycling Unit Hacks . | . . . Scanalyzer . | . . . Garrison Access Hacks . | . . . Unauthorized Hacks 3 | . 3 . Terminals 3 | . 3 . Botnet 3 | . 3 . Fabricators . | . . . Repair Stations . | . . . Recycling Units . | . . . Scanalyzers . | . . . Garrison Access . | . . . Data Cores Recovered . | . . . Used . | . . . Hacking Detections 2 | . 2 . Full Trace Events . | . . . Feedback Events . | . . . Feedback Blocked . | . . . Robot Schematics Acquired . | . . . Robots Built . | . . . Authchips . | . . . Time . | . . . Total Robot Build Rating . | . . . Part Schematics Acquired . | . . . Parts Built . | . . . Authchips . | . . . Time . | . . . Total Part Build Rating . | . . . Parts Repaired . | . . . Time . | . . . Parts Recycled . | . . . Recycled Matter . | . . . Retrieved Matter . | . . . Retrieved Components . | . . . Parts Scanalyzed . | . . . Part Schematics Acquired . | . . . Parts Damaged . | . . . Bothacking | -11 -10 -10 ------------ Run | Yrd Mat Min Used RIF Installer . | . . . Robots Hacked . | . . . Non-combat . | . . . Combat . | . . . Robot Hacks Applied . | . . . Relay Couplers Released . | . . . Fabnet Peak Effective % . | . . . Robots Rewired . | . . . Allies Hacked . | . . . Hacks Repelled . | . . . Allies | -11 -10 -10 -------- Run | Yrd Mat Min Total Allies . | . . . Largest Group . | . . . Highest-Rated Group . | . . . Highest-Rated Ally . | . . . Total Orders . | . . . Ally Attacks . | . . . Total Damage . | . . . Kills . | . . . Allies Corrupted . | . . . Allies Melted . | . . . Intel | -11 -10 -10 ------- Run | Yrd Mat Min Robot Analysis Total 1 | . 1 . Derelict Logs Recovered 1 | . . 1 Drone Launches . | . . . Drone Recoveries . | . . . Exploration | -11 -10 -10 ------------- Run | Yrd Mat Min Turns Passed 1212 | 61 572 579 Spaces Moved 621 | 43 375 203 Core 4 | 4 . . Treads 39 | . . 39 Legs 578 | 39 375 164 Wheels . | . . . Hover . | . . . Flight . | . . . Fastest Speed 50 | 50 120 120 Average Speed 122 | 113 120 128 Slowest Speed 190 | 120 120 190 Overloaded Moves . | . . . Propulsion Burnouts . | . . . Robots Hopped . | . . . Cave-ins Triggered . | . . . Exploration Rate (%) 35 | 3 67 36 Regions Visited 2 Branch Regions 1 Pre-discovered Areas . | . . . Known Exits Taken . | . . . Unknown Exits Taken 2 | 1 1 . Scrap Searched 1 | . . 1 Spaces Dug . | . . . Terrain Destroyed . | . . . Melee . | . . . Projectile . | . . . AOE . | . . . Terrain Rammed . | . . . Walls Destroyed . | . . . Machines Disabled . | . . . Actions | -11 -10 -10 --------- Run | Yrd Mat Min Total 946 | 53 439 454 Wait 209 | . 29 180 Move 619 | 42 374 203 Hop . | . . . Pick Up 13 | 5 2 6 Fast Attach 8 | 3 2 3 Attach 10 | 3 1 6 Detach . | . . . Swap 3 | . 2 1 Drop 4 | . 1 3 Fire 80 | . 28 52 Melee . | . . . Ram . | . . . Kick . | . . . Crush . | . . . Escape Stasis . | . . . Rewire . | . . . Trap . | . . . Miscellaneous . | . . . Route ------- -11/Scrapyard -10/Materials (discovered 2 exits: [*Mat] / *Min) -10/Mines History --------- Turn | Location | Event 2 | -11/Scrapyard | Discovered new exit (range 16) 62 | -11/Scrapyard | Entered Materials 317 | -10/Materials | Build established: Mutant 422 | -10/Materials | Discovered new exit (range 8) 567 | -10/Materials | Discovered new exit (range 15) 634 | -10/Materials | Entered Mines 750 | -10/Mines | Lost 3 parts (1p2w) 800 | -10/Mines | Found the Drone Emporium 855 | -10/Mines | Learned location of 1 exit from Materials 890 | -10/Mines | Core integrity fell below 50% 900 | -10/Mines | Excavation squad dispatched 900 | -10/Mines | A large section of the Mines collapsed 1150 | -10/Mines | Excavation squad dispatched 1183 | -10/Mines | Build established: Scavenger-Mutant 1189 | -10/Mines | Core integrity fell below 20% 1213 | -10/Mines | Destroyed by G-34 Mercenary with Small Laser Last Messages --------------- 01176_ T-07 Excavator is excavating. 01177_ G-34 Mercenary destroyed. 01178_ U-05 Engineer lays Concrete. 01180_ T-07 Excavator is excavating. 01183_ G-34 Mercenary suffers critical hit (Burn). 01190_ G-34 Mercenary overheating. 01192_ G-34 Mercenary heat damages Ion Engine. 01192_ G-34 Mercenary overheating. 01194_ G-34 Mercenary heat spikes uncontrollably. 01194_ G-34 Mercenary overheating. 01195_ Melted Aluminum Leg. 01195_ G-34 Mercenary critical meltdown. 01195_ Sml. Laser melted. 01200_ Imp. Ion Engine destroyed. 01207_ Lgt. Treads destroyed. 01209_ T-07 Excavator destroyed. 01211_ G-34 Mercenary heat damages Heat Sink, Ion Engine, Aluminum Leg, Sml. Laser. Map ----- +----------------------------------------------------+ | ?????????????????????????????????? | | ?????????????????????????????????? | | ?????????????????????????????????? | | ?????????????????????????????????? | | ?????????????????????????????????? | | ?????????????????????????????????? | | ?????????????????????????????????? | | ?????????????????????????????????? | | ?????????????????????????????????? | | ?????????????????????????????????? | | ????????? ???????????????????????? | | ????????? ???????????????????????? | | ????????? ???????????????????????? | | ????????? ???????????????????????? | | ????????? ???????????????????????? | | ????????? ???????????????????????? | | ?????????!???????????????????????? | | ????????#=##?????????????????????? | | ???????##%% ?????????????????????? | | ??????##% ??????????????????????? | | ????###==% ???###########????????? | | ???## t ???# "?? | | ???# %[% ???# ########????????? | | ???# % gt#???# #???????????????? | | ????# %g##?## #???????????????? | | ????# !@%### #???????????????? | | ???##t ; !! #???????????????? | | ??## !%=%| ##???????????????? | | ??# ##=t* ##????????????????? | | ??# #?## ##?????????????????? | | ??# #??# ####???????????????? | | ??## #??## #???????????????? | | ??# ##???##u ### #???????????????? | | ??# ####?#t##?# #???????????????? | | ?## ###u#### #???????????????? | | ?# #???????????????? | | ?#% ####### #???????????????? | | ?#[ #?????# #???????????????? | | ?# #?????# #???????????????? | | ?## ####### ####????????????? | | ??# % #????????????? | | ??# * #????????????? | | ??# ####### #????????????? | | ??# ! #?????# #????????????? | | ??## ######?????# #????????????? | | ???####?????????## #????????????? | | ????????###?##### ##???????????? | | ???????##""## #???????????? | | ???????#" # #???????????? | | ???????#"! ##???????????? | +----------------------------------------------------+ Best States ------------- Heat Dissipation 35 Energy Generation 12 Energy Capacity 265 Matter Stores 300 Matter Capacity 300 Sight Range 16 Terrain Scan Density 10 Core Shielding 20 Power Shielding 33 Evasion (%) 55 Recoil Reduction 2 Item Schematics ----------------- None Robot Schematics ------------------ None Fabricated ------------ Nothing Alien Tech Used ----------------- None Achievements -------------- None Challenges ------------ None Game ------ Seed LegAdvancedUnit Manual? 0 Play Time 00:09:33 Cumulative 63.2 hours Start 2024.03.21 @ 10:16:56 End 2024.03.21 @ 10:24:06 Sessions 1 Manual Loads 0 Difficulty Rogue Special Mode None Game No. 107 Rogue 91 Adventurer 16 Explorer 0 Win Type - Total 1 Types 1/0/0/0/0/0/0/0/0 Lore% 36 Gallery% 54 Achievement% 48 Wizard Run 0 Options --------- Layout 2 ASCII 0 Keyboard 0 Movement Vi Keybinds 0 Fullscreen 1 Font 24/Smallcaps Map View 50x49 Zoom Use 0% Tactical HUD 1 Map Filters NONE Filters NONE Steam 1 RUN: 64a53785-f602-48d0-b0b3-ab3c716c7db0